[Event "Titled Tuesday Blitz August 1 Late 2023"]
[White "Morefield, Jason"]
[Black "Gasparyan, David"]
[WhiteFideId "30920825"]
[BlackFideId "13311980"]
[WhiteElo "2696"]
[BlackElo "2525"]
[Result "0-1"]
[Round "9"]
[TimeControl "180+1"]
[Date "2023.08.01"]
[WhiteClock "0:00:02"]
[BlackClock "0:00:12"]
[Board "23"]

1. e4 {[%clk 0:03:00]}  c5 {[%clk 0:03:00]} 2. Nf3 {[%clk 0:02:59]}  g6 {[%clk 0:03:00]} 3. c3 {[%clk 0:02:58]}  Nf6 {[%clk 0:02:53]} 4. e5 {[%clk 0:02:55]}  Nd5 {[%clk 0:02:53]} 5. d4 {[%clk 0:02:54]}  cxd4 {[%clk 0:02:54]} 6. Bc4 {[%clk 0:02:54]}  Nb6 {[%clk 0:02:19]} 7. Bb3 {[%clk 0:02:52]}  d5 {[%clk 0:02:13]} 8. cxd4 {[%clk 0:02:38]}  Nc6 {[%clk 0:02:08]} 9. h3 {[%clk 0:02:36]}  Bf5 {[%clk 0:02:08]} 10. Nc3 {[%clk 0:02:35]}  Bg7 {[%clk 0:02:07]} 11. O-O {[%clk 0:02:34]}  O-O {[%clk 0:02:08]} 12. Re1 {[%clk 0:02:33]}  Rc8 {[%clk 0:02:07]} 13. Bg5 {[%clk 0:02:26]}  h6 {[%clk 0:02:07]} 14. Bh4 {[%clk 0:02:25]}  Qd7 {[%clk 0:02:05]} 15. Qd2 {[%clk 0:02:22]}  Na5 {[%clk 0:01:49]} 16. Rac1 {[%clk 0:01:41]}  Nac4 {[%clk 0:01:46]} 17. Qe2 {[%clk 0:01:35]}  g5 {[%clk 0:01:37]} 18. Bg3 {[%clk 0:01:35]}  e6 {[%clk 0:01:38]} 19. Nh2 {[%clk 0:01:28]}  Bg6 {[%clk 0:01:24]} 20. h4 {[%clk 0:01:22]}  Qe7 {[%clk 0:01:15]} 21. hxg5 {[%clk 0:01:18]}  Qxg5 {[%clk 0:01:14]} 22. Nf3 {[%clk 0:00:58]}  Qg4 {[%clk 0:01:09]} 23. Nd1 {[%clk 0:00:37]}  Be4 {[%clk 0:01:01]} 24. Nh2 {[%clk 0:00:27]}  Qxe2 {[%clk 0:01:00]} 25. Rxe2 {[%clk 0:00:28]}  Na5 {[%clk 0:00:58]} 26. Nc3 {[%clk 0:00:24]}  Bf5 {[%clk 0:00:53]} 27. Rd1 {[%clk 0:00:18]}  a6 {[%clk 0:00:51]} 28. Bh4 {[%clk 0:00:16]}  Rc7 {[%clk 0:00:50]} 29. f3 {[%clk 0:00:15]}  Rfc8 {[%clk 0:00:50]} 30. Be1 {[%clk 0:00:15]}  Nbc4 {[%clk 0:00:46]} 31. Na4 {[%clk 0:00:12]}  Bf8 {[%clk 0:00:45]} 32. Nf1 {[%clk 0:00:11]}  b5 {[%clk 0:00:43]} 33. Nc3 {[%clk 0:00:09]}  Nxb3 {[%clk 0:00:42]} 34. axb3 {[%clk 0:00:09]}  Na5 {[%clk 0:00:43]} 35. Nxb5 {[%clk 0:00:08]}  axb5 {[%clk 0:00:41]} 36. Bxa5 {[%clk 0:00:09]}  Rc2 {[%clk 0:00:41]} 37. Rdd2 {[%clk 0:00:08]}  Rxd2 {[%clk 0:00:37]} 38. Rxd2 {[%clk 0:00:09]}  Ra8 {[%clk 0:00:37]} 39. b4 {[%clk 0:00:09]}  Rc8 {[%clk 0:00:37]} 40. Ne3 {[%clk 0:00:08]}  Bb1 {[%clk 0:00:34]} 41. Nd1 {[%clk 0:00:06]}  Rc1 {[%clk 0:00:34]} 42. Kf2 {[%clk 0:00:06]}  Rc4 {[%clk 0:00:33]} 43. Nc3 {[%clk 0:00:06]}  Bg6 {[%clk 0:00:30]} 44. Na2 {[%clk 0:00:04]}  f6 {[%clk 0:00:28]} 45. exf6 {[%clk 0:00:03]}  Kf7 {[%clk 0:00:28]} 46. b3 {[%clk 0:00:03]}  Rc8 {[%clk 0:00:27]} 47. g4 {[%clk 0:00:04]}  Kxf6 {[%clk 0:00:26]} 48. Ke3 {[%clk 0:00:04]}  Be7 {[%clk 0:00:25]} 49. f4 {[%clk 0:00:03]}  Kf7 {[%clk 0:00:24]} 50. Bb6 {[%clk 0:00:04]}  Ra8 {[%clk 0:00:23]} 51. Bc5 {[%clk 0:00:04]}  Bf6 {[%clk 0:00:23]} 52. Nc3 {[%clk 0:00:03]}  Ra3 {[%clk 0:00:18]} 53. Rb2 {[%clk 0:00:03]}  Kg7 {[%clk 0:00:10]} 54. Nxb5 {[%clk 0:00:03]}  Ra1 {[%clk 0:00:11]} 55. Nc7 {[%clk 0:00:03]}  Re1+ {[%clk 0:00:11]} 56. Kf2 {[%clk 0:00:04]}  Re4 {[%clk 0:00:12]} 57. Kf3 {[%clk 0:00:03]}  Bd8 {[%clk 0:00:11]} 58. Nb5 {[%clk 0:00:02]}  h5 {[%clk 0:00:10]} 59. g5 {[%clk 0:00:01]}  Bf5 {[%clk 0:00:10]} 60. Bd6 {[%clk 0:00:01]}  Bg4+ {[%clk 0:00:11]} 61. Kg3 {[%clk 0:00:02]}  Re3+ {[%clk 0:00:11]} 62. Kf2 {[%clk 0:00:03]}  Rf3+ {[%clk 0:00:11]} 63. Kg2 {[%clk 0:00:03]}  Bb6 {[%clk 0:00:10]} 64. Be5+ {[%clk 0:00:04]}  Kg6 {[%clk 0:00:10]} 65. Nd6 {[%clk 0:00:04]}  Rd3 {[%clk 0:00:10]} 66. Rc2 {[%clk 0:00:04]}  Bxd4 {[%clk 0:00:11]} 67. Bxd4 {[%clk 0:00:05]}  Rxd4 {[%clk 0:00:11]} 68. b5 {[%clk 0:00:05]}  Rb4 {[%clk 0:00:11]} 69. Rc6 {[%clk 0:00:05]}  Rxb3 {[%clk 0:00:12]} 70. b6 {[%clk 0:00:05]}  d4 {[%clk 0:00:12]} 71. b7 {[%clk 0:00:05]}  Bf3+ {[%clk 0:00:12]} 72. Kg3 {[%clk 0:00:02]}  Bxc6+ {[%clk 0:00:13]} 73. Kh4 {[%clk 0:00:03]}  Bxb7 {[%clk 0:00:13]} 74. Nc4 {[%clk 0:00:03]}  Bd5 {[%clk 0:00:12]} 75. Ne5+ {[%clk 0:00:02]}  Kg7 {[%clk 0:00:13]} 76. Kxh5 {[%clk 0:00:02]}  d3 {[%clk 0:00:12]} 77. Ng4 {[%clk 0:00:02]}  Bf3 {[%clk 0:00:12]} 78. g6 {[%clk 0:00:02]}  Bxg4+ {[%clk 0:00:12]} 79. Kg5 {[%clk 0:00:03]}  d2 {[%clk 0:00:12]} 80. f5 {[%clk 0:00:02]}  Bxf5 {[%clk 0:00:12]} 0-1


[Site "https://www.chess.com"]

[Event "Titled Tuesday Blitz August 1 Late 2023"]
[White "Annaberdiyev, Meylis"]
[Black "Nikologorsky, Matfei"]
[WhiteFideId "14000563"]
[BlackFideId "24102474"]
[WhiteElo "2681"]
[BlackElo "2396"]
[Result "1-0"]
[Round "9"]
[TimeControl "180+1"]
[Date "2023.08.01"]
[WhiteClock "0:00:48"]
[BlackClock "0:00:11"]
[Board "24"]

1. e4 {[%clk 0:03:00]}  c5 {[%clk 0:02:59]} 2. Nf3 {[%clk 0:02:58]}  e6 {[%clk 0:03:00]} 3. c3 {[%clk 0:02:57]}  d5 {[%clk 0:02:59]} 4. e5 {[%clk 0:02:57]}  Nc6 {[%clk 0:02:57]} 5. d4 {[%clk 0:02:57]}  Nge7 {[%clk 0:02:58]} 6. Na3 {[%clk 0:02:55]}  cxd4 {[%clk 0:02:54]} 7. cxd4 {[%clk 0:02:55]}  Nf5 {[%clk 0:02:55]} 8. Nc2 {[%clk 0:02:56]}  Qb6 {[%clk 0:02:47]} 9. Bd3 {[%clk 0:02:44]}  Be7 {[%clk 0:02:45]} 10. O-O {[%clk 0:02:43]}  O-O {[%clk 0:02:41]} 11. Kh1 {[%clk 0:02:34]}  Kh8 {[%clk 0:02:39]} 12. g4 {[%clk 0:02:17]}  Nh6 {[%clk 0:00:58]} 13. Bxh6 {[%clk 0:02:07]}  gxh6 {[%clk 0:00:59]} 14. Qd2 {[%clk 0:02:08]}  Rg8 {[%clk 0:00:53]} 15. Qxh6 {[%clk 0:01:41]}  Rg7 {[%clk 0:00:53]} 16. Rg1 {[%clk 0:01:42]}  Qxb2 {[%clk 0:00:41]} 17. Rab1 {[%clk 0:01:34]}  Qxa2 {[%clk 0:00:30]} 18. Ne3 {[%clk 0:01:34]}  Qa3 {[%clk 0:00:25]} 19. Rbd1 {[%clk 0:01:04]}  Bd7 {[%clk 0:00:24]} 20. Nf5 {[%clk 0:00:50]}  exf5 {[%clk 0:00:23]} 21. gxf5 {[%clk 0:00:50]}  Rxg1+ {[%clk 0:00:20]} 22. Rxg1 {[%clk 0:00:50]}  Bf8 {[%clk 0:00:11]} 23. Qf6+ {[%clk 0:00:48]} 1-0


[Site "https://www.chess.com"]

[Event "Titled Tuesday Blitz August 1 Late 2023"]
[White "Xiong, Jeffery"]
[Black "Reprintsev, Alexander"]
[WhiteFideId "2047640"]
[BlackFideId "14100541"]
[WhiteElo "2962"]
[BlackElo "2463"]
[Result "1-0"]
[Round "9"]
[TimeControl "180+1"]
[Date "2023.08.01"]
[WhiteClock "0:01:22"]
[BlackClock "0:01:36"]
[Board "25"]

1. e4 {[%clk 0:03:00]}  d5 {[%clk 0:02:59]} 2. exd5 {[%clk 0:03:00]}  Qxd5 {[%clk 0:02:59]} 3. Nc3 {[%clk 0:03:01]}  Qd6 {[%clk 0:02:59]} 4. d4 {[%clk 0:03:01]}  c6 {[%clk 0:02:58]} 5. Nf3 {[%clk 0:03:02]}  Bf5 {[%clk 0:02:58]} 6. Bd3 {[%clk 0:02:53]}  Bxd3 {[%clk 0:02:56]} 7. Qxd3 {[%clk 0:02:54]}  e6 {[%clk 0:02:53]} 8. Bg5 {[%clk 0:02:52]}  Be7 {[%clk 0:02:52]} 9. Bxe7 {[%clk 0:02:42]}  Nxe7 {[%clk 0:02:52]} 10. O-O-O {[%clk 0:02:43]}  Na6 {[%clk 0:02:50]} 11. a3 {[%clk 0:02:42]}  O-O-O {[%clk 0:02:49]} 12. Ne5 {[%clk 0:02:41]}  Rdf8 {[%clk 0:02:45]} 13. Ne4 {[%clk 0:02:35]}  Qc7 {[%clk 0:02:44]} 14. Rhe1 {[%clk 0:02:33]}  h6 {[%clk 0:02:42]} 15. Kb1 {[%clk 0:02:32]}  Nf5 {[%clk 0:02:41]} 16. g4 {[%clk 0:02:22]}  Nd6 {[%clk 0:02:41]} 17. Nc5 {[%clk 0:02:22]}  Nxc5 {[%clk 0:02:39]} 18. dxc5 {[%clk 0:02:23]}  Ne8 {[%clk 0:02:28]} 19. Qd7+ {[%clk 0:01:55]}  Qxd7 {[%clk 0:02:25]} 20. Rxd7 {[%clk 0:01:56]}  f6 {[%clk 0:02:16]} 21. Red1 {[%clk 0:01:55]}  Nc7 {[%clk 0:02:14]} 22. Ng6 {[%clk 0:01:55]}  Nd5 {[%clk 0:02:12]} 23. Nxf8 {[%clk 0:01:53]}  Rxf8 {[%clk 0:02:08]} 24. Rxg7 {[%clk 0:01:54]}  f5 {[%clk 0:02:07]} 25. c4 {[%clk 0:01:52]}  Nf6 {[%clk 0:02:03]} 26. gxf5 {[%clk 0:01:51]}  exf5 {[%clk 0:02:03]} 27. b4 {[%clk 0:01:41]}  a5 {[%clk 0:02:02]} 28. Kc2 {[%clk 0:01:41]}  axb4 {[%clk 0:02:00]} 29. axb4 {[%clk 0:01:42]}  f4 {[%clk 0:02:00]} 30. f3 {[%clk 0:01:35]}  h5 {[%clk 0:02:00]} 31. Re7 {[%clk 0:01:34]}  Rg8 {[%clk 0:01:57]} 32. Rd6 {[%clk 0:01:34]}  Rg2+ {[%clk 0:01:52]} 33. Kd3 {[%clk 0:01:33]}  Ng8 {[%clk 0:01:52]} 34. Re8+ {[%clk 0:01:27]}  Kc7 {[%clk 0:01:36]} 35. b5 {[%clk 0:01:22]} 1-0


[Site "https://www.chess.com"]

[Event "Titled Tuesday Blitz August 1 Late 2023"]
[White "Musovic, Armin"]
[Black "Schnaider, Ilan"]
[WhiteFideId "939935"]
[BlackFideId "169013"]
[WhiteElo "2567"]
[BlackElo "2689"]
[Result "1-0"]
[Round "9"]
[TimeControl "180+1"]
[Date "2023.08.01"]
[WhiteClock "0:01:20"]
[BlackClock "0:00:00"]
[Board "27"]

1. a3 {[%clk 0:03:00]}  e5 {[%clk 0:02:56]} 2. d4 {[%clk 0:03:01]}  exd4 {[%clk 0:02:56]} 3. Qxd4 {[%clk 0:03:02]}  Nc6 {[%clk 0:02:56]} 4. Qa4 {[%clk 0:03:02]}  Nf6 {[%clk 0:02:55]} 5. Nc3 {[%clk 0:03:02]}  Be7 {[%clk 0:02:55]} 6. Bg5 {[%clk 0:03:03]}  d5 {[%clk 0:02:53]} 7. O-O-O {[%clk 0:03:03]}  Be6 {[%clk 0:02:52]} 8. e4 {[%clk 0:03:03]}  Nxe4 {[%clk 0:02:48]} 9. Bxe7 {[%clk 0:03:03]}  Nxc3 {[%clk 0:02:26]} 10. Bxd8 {[%clk 0:03:02]}  Nxa4 {[%clk 0:02:27]} 11. Bxc7 {[%clk 0:03:02]}  Rc8 {[%clk 0:02:23]} 12. Bd6 {[%clk 0:03:01]}  Kd7 {[%clk 0:02:21]} 13. Bg3 {[%clk 0:02:48]}  Nc5 {[%clk 0:02:15]} 14. Nf3 {[%clk 0:02:48]}  Rhe8 {[%clk 0:01:55]} 15. Bb5 {[%clk 0:02:47]}  a6 {[%clk 0:01:52]} 16. Ne5+ {[%clk 0:02:46]}  Ke7 {[%clk 0:01:46]} 17. Bxc6 {[%clk 0:02:21]}  bxc6 {[%clk 0:01:46]} 18. Rhe1 {[%clk 0:02:20]}  f6 {[%clk 0:01:30]} 19. Nd3 {[%clk 0:02:14]}  Nxd3+ {[%clk 0:01:26]} 20. Rxd3 {[%clk 0:02:15]}  Kf7 {[%clk 0:01:25]} 21. Rb3 {[%clk 0:02:11]}  Re7 {[%clk 0:01:08]} 22. Bd6 {[%clk 0:02:08]}  Rd7 {[%clk 0:01:06]} 23. Bc5 {[%clk 0:02:07]}  Rcd8 {[%clk 0:00:54]} 24. Bd4 {[%clk 0:01:58]}  Rc8 {[%clk 0:00:49]} 25. Rb6 {[%clk 0:01:58]}  c5 {[%clk 0:00:38]} 26. Bxf6 {[%clk 0:01:55]}  Bf5 {[%clk 0:00:25]} 27. Bh4 {[%clk 0:01:54]}  a5 {[%clk 0:00:22]} 28. Re5 {[%clk 0:01:52]}  g6 {[%clk 0:00:19]} 29. f3 {[%clk 0:01:50]}  h5 {[%clk 0:00:19]} 30. h3 {[%clk 0:01:49]}  Rdc7 {[%clk 0:00:09]} 31. g4 {[%clk 0:01:46]}  Bd7 {[%clk 0:00:08]} 32. Rxd5 {[%clk 0:01:40]}  Bc6 {[%clk 0:00:08]} 33. Rxc5 {[%clk 0:01:36]}  hxg4 {[%clk 0:00:08]} 34. hxg4 {[%clk 0:01:34]}  Bd7 {[%clk 0:00:05]} 35. Rf6+ {[%clk 0:01:35]}  Kg7 {[%clk 0:00:05]} 36. Rxc7 {[%clk 0:01:33]}  Rxc7 {[%clk 0:00:06]} 37. Kd2 {[%clk 0:01:24]}  Rc5 {[%clk 0:00:06]} 38. Rd6 {[%clk 0:01:23]}  Bc6 {[%clk 0:00:06]} 39. Bf6+ {[%clk 0:01:22]}  Kf7 {[%clk 0:00:05]} 40. g5 {[%clk 0:01:23]}  Bxf3 {[%clk 0:00:05]} 41. b4 {[%clk 0:01:23]}  axb4 {[%clk 0:00:05]} 42. axb4 {[%clk 0:01:24]}  Rb5 {[%clk 0:00:03]} 43. Kc3 {[%clk 0:01:24]}  Be4 {[%clk 0:00:03]} 44. Rd4 {[%clk 0:01:20]}  Bf5 {[%clk 0:00:02]} 45. Kb3 {[%clk 0:01:18]}  Be6+ {[%clk 0:00:02]} 46. c4 {[%clk 0:01:19]}  Rb7 {[%clk 0:00:03]} 47. Kc3 {[%clk 0:01:19]}  Ke8 {[%clk 0:00:00]} 48. b5 {[%clk 0:01:20]} 1-0


[Site "https://www.chess.com"]

[Event "Titled Tuesday Blitz August 1 Late 2023"]
[White "Klukin, Kirill"]
[Black "Santos Flores, Alberto"]
[WhiteFideId "24199273"]
[BlackFideId "3601234"]
[WhiteElo "2688"]
[BlackElo "2563"]
[Result "1-0"]
[Round "9"]
[TimeControl "180+1"]
[Date "2023.08.01"]
[WhiteClock "0:01:00"]
[BlackClock "0:00:06"]
[Board "28"]

1. d4 {[%clk 0:02:59]}  d5 {[%clk 0:03:00]} 2. c4 {[%clk 0:02:59]}  c6 {[%clk 0:03:00]} 3. Nf3 {[%clk 0:02:57]}  Nf6 {[%clk 0:03:00]} 4. Nc3 {[%clk 0:02:55]}  dxc4 {[%clk 0:03:00]} 5. e3 {[%clk 0:02:56]}  b5 {[%clk 0:03:00]} 6. a4 {[%clk 0:02:56]}  b4 {[%clk 0:02:59]} 7. Na2 {[%clk 0:02:56]}  e6 {[%clk 0:02:59]} 8. Bxc4 {[%clk 0:02:56]}  Bb7 {[%clk 0:02:59]} 9. O-O {[%clk 0:02:56]}  Nbd7 {[%clk 0:02:59]} 10. Qe2 {[%clk 0:02:57]}  Be7 {[%clk 0:02:59]} 11. Rd1 {[%clk 0:02:58]}  O-O {[%clk 0:02:58]} 12. Bd2 {[%clk 0:02:58]}  a5 {[%clk 0:02:57]} 13. Nc1 {[%clk 0:02:57]}  c5 {[%clk 0:02:57]} 14. Nb3 {[%clk 0:02:56]}  cxd4 {[%clk 0:02:53]} 15. Nfxd4 {[%clk 0:02:50]}  Qb6 {[%clk 0:02:50]} 16. Bb5 {[%clk 0:02:50]}  Nc5 {[%clk 0:02:44]} 17. Rac1 {[%clk 0:02:31]}  Nxb3 {[%clk 0:02:39]} 18. Nxb3 {[%clk 0:02:32]}  Rac8 {[%clk 0:02:33]} 19. Be1 {[%clk 0:02:31]}  h6 {[%clk 0:02:26]} 20. f3 {[%clk 0:02:28]}  Rxc1 {[%clk 0:02:22]} 21. Rxc1 {[%clk 0:02:24]}  Rc8 {[%clk 0:02:22]} 22. Rd1 {[%clk 0:02:20]}  Bd5 {[%clk 0:02:13]} 23. Nd4 {[%clk 0:02:13]}  Bc5 {[%clk 0:02:11]} 24. Bf2 {[%clk 0:02:13]}  Bb7 {[%clk 0:01:36]} 25. Nb3 {[%clk 0:02:10]}  Bc6 {[%clk 0:01:09]} 26. Rc1 {[%clk 0:01:16]}  Bb7 {[%clk 0:00:55]} 27. Rxc5 {[%clk 0:01:00]}  Rxc5 {[%clk 0:00:06]} 28. e4 {[%clk 0:01:00]} 1-0


[Site "https://www.chess.com"]

[Event "Titled Tuesday Blitz August 1 Late 2023"]
[White "Ardelean, George-Catalin"]
[Black "Graif, William"]
[WhiteFideId "1207091"]
[BlackFideId "2609835"]
[WhiteElo "2674"]
[BlackElo "2558"]
[Result "1-0"]
[Round "9"]
[TimeControl "180+1"]
[Date "2023.08.01"]
[WhiteClock "0:00:09"]
[BlackClock "0:00:11"]
[Board "31"]

1. d4 {[%clk 0:03:00]}  Nf6 {[%clk 0:02:58]} 2. Bf4 {[%clk 0:03:00]}  c5 {[%clk 0:02:57]} 3. e3 {[%clk 0:02:58]}  Qb6 {[%clk 0:02:57]} 4. Nc3 {[%clk 0:02:58]}  Qxb2 {[%clk 0:02:58]} 5. Nb5 {[%clk 0:02:55]}  cxd4 {[%clk 0:02:58]} 6. exd4 {[%clk 0:02:49]}  e5 {[%clk 0:02:57]} 7. Bd2 {[%clk 0:02:13]}  Nc6 {[%clk 0:02:51]} 8. Nf3 {[%clk 0:01:59]}  e4 {[%clk 0:02:46]} 9. Rb1 {[%clk 0:01:41]}  Qxa2 {[%clk 0:02:45]} 10. Ne5 {[%clk 0:01:37]}  Nxe5 {[%clk 0:01:30]} 11. dxe5 {[%clk 0:01:37]}  Nd5 {[%clk 0:01:29]} 12. c4 {[%clk 0:01:31]}  a6 {[%clk 0:01:25]} 13. Ra1 {[%clk 0:01:31]}  Qb2 {[%clk 0:00:49]} 14. cxd5 {[%clk 0:01:28]}  Qxe5 {[%clk 0:00:45]} 15. Bc3 {[%clk 0:01:20]}  Qg5 {[%clk 0:00:41]} 16. Nc7+ {[%clk 0:01:14]}  Kd8 {[%clk 0:00:41]} 17. Nxa8 {[%clk 0:01:14]}  Bc5 {[%clk 0:00:40]} 18. Qc1 {[%clk 0:00:34]}  e3 {[%clk 0:00:40]} 19. Ba5+ {[%clk 0:00:32]}  b6 {[%clk 0:00:38]} 20. Qxc5 {[%clk 0:00:27]}  exf2+ {[%clk 0:00:32]} 21. Kxf2 {[%clk 0:00:24]}  Qf6+ {[%clk 0:00:30]} 22. Kg1 {[%clk 0:00:25]}  Qxa1 {[%clk 0:00:15]} 23. Bxb6+ {[%clk 0:00:23]}  Ke8 {[%clk 0:00:15]} 24. Nc7+ {[%clk 0:00:19]}  Kd8 {[%clk 0:00:16]} 25. Ne6+ {[%clk 0:00:19]}  Ke8 {[%clk 0:00:16]} 26. Qxc8+ {[%clk 0:00:14]}  Ke7 {[%clk 0:00:17]} 27. Bc5+ {[%clk 0:00:13]}  d6 {[%clk 0:00:16]} 28. Qxh8 {[%clk 0:00:10]}  dxc5 {[%clk 0:00:15]} 29. Qxg7 {[%clk 0:00:10]}  Qa3 {[%clk 0:00:14]} 30. Qg5+ {[%clk 0:00:10]}  f6 {[%clk 0:00:14]} 31. Qg7+ {[%clk 0:00:09]}  Kd6 {[%clk 0:00:14]} 32. Qg3+ {[%clk 0:00:09]}  Kd7 {[%clk 0:00:11]} 33. Qxa3 {[%clk 0:00:09]} 1-0


[Site "https://www.chess.com"]

[Event "Titled Tuesday Blitz August 1 Late 2023"]
[White "Rastbod, Ali"]
[Black "Tikhonov, Viacheslav"]
[WhiteFideId "12567477"]
[BlackFideId "44196407"]
[WhiteElo "2667"]
[BlackElo "2545"]
[Result "1-0"]
[Round "9"]
[TimeControl "180+1"]
[Date "2023.08.01"]
[WhiteClock "0:01:27"]
[BlackClock "0:00:01"]
[Board "32"]

1. Nf3 {[%clk 0:03:00]}  Nf6 {[%clk 0:02:59]} 2. g3 {[%clk 0:03:01]}  e6 {[%clk 0:03:00]} 3. Bg2 {[%clk 0:03:02]}  d5 {[%clk 0:03:00]} 4. O-O {[%clk 0:03:03]}  Be7 {[%clk 0:03:01]} 5. d3 {[%clk 0:03:03]}  O-O {[%clk 0:03:02]} 6. Nbd2 {[%clk 0:03:03]}  c5 {[%clk 0:02:55]} 7. e4 {[%clk 0:03:03]}  Nc6 {[%clk 0:02:55]} 8. Re1 {[%clk 0:03:04]}  b5 {[%clk 0:02:54]} 9. e5 {[%clk 0:03:04]}  Nd7 {[%clk 0:02:55]} 10. Nf1 {[%clk 0:03:04]}  Bb7 {[%clk 0:02:54]} 11. h4 {[%clk 0:03:03]}  a5 {[%clk 0:02:50]} 12. h5 {[%clk 0:03:03]}  h6 {[%clk 0:02:51]} 13. N1h2 {[%clk 0:03:03]}  Qb6 {[%clk 0:02:48]} 14. Ng4 {[%clk 0:03:03]}  Rfc8 {[%clk 0:02:48]} 15. Bf4 {[%clk 0:03:04]}  a4 {[%clk 0:02:41]} 16. Qd2 {[%clk 0:03:03]}  b4 {[%clk 0:02:27]} 17. Bxh6 {[%clk 0:02:58]}  gxh6 {[%clk 0:02:24]} 18. Qxh6 {[%clk 0:02:59]}  Qd8 {[%clk 0:02:10]} 19. Qf4 {[%clk 0:02:52]}  Bf8 {[%clk 0:01:06]} 20. h6 {[%clk 0:02:33]}  Qe7 {[%clk 0:00:58]} 21. a3 {[%clk 0:02:16]}  Nd4 {[%clk 0:00:55]} 22. Nxd4 {[%clk 0:02:02]}  cxd4 {[%clk 0:00:56]} 23. Re2 {[%clk 0:02:02]}  b3 {[%clk 0:00:54]} 24. cxb3 {[%clk 0:01:51]}  axb3 {[%clk 0:00:55]} 25. Nf6+ {[%clk 0:01:40]}  Nxf6 {[%clk 0:00:37]} 26. exf6 {[%clk 0:01:41]}  Qd6 {[%clk 0:00:33]} 27. h7+ {[%clk 0:01:38]}  Kh8 {[%clk 0:00:32]} 28. Qg5 {[%clk 0:01:35]}  Kxh7 {[%clk 0:00:17]} 29. Qh5+ {[%clk 0:01:34]}  Kg8 {[%clk 0:00:17]} 30. Re5 {[%clk 0:01:33]}  Bg7 {[%clk 0:00:13]} 31. Rg5 {[%clk 0:01:32]}  Kf8 {[%clk 0:00:04]} 32. Rxg7 {[%clk 0:01:28]}  Ke8 {[%clk 0:00:04]} 33. Qxf7+ {[%clk 0:01:26]}  Kd8 {[%clk 0:00:01]} 34. Rg8+ {[%clk 0:01:27]} 1-0


[Site "https://www.chess.com"]

[Event "Titled Tuesday Blitz August 1 Late 2023"]
[White "Romero Pallares, Daniel"]
[Black "Adewumi, Tanitoluwa"]
[WhiteFideId "32025637"]
[BlackFideId "30966396"]
[WhiteElo "2529"]
[BlackElo "2651"]
[Result "0-1"]
[Round "9"]
[TimeControl "180+1"]
[Date "2023.08.01"]
[WhiteClock "0:01:06"]
[BlackClock "0:00:38"]
[Board "34"]

1. g3 {[%clk 0:02:49]}  Nf6 {[%clk 0:02:57]} 2. Bg2 {[%clk 0:02:49]}  e6 {[%clk 0:02:45]} 3. d3 {[%clk 0:02:44]}  d5 {[%clk 0:02:45]} 4. Nd2 {[%clk 0:02:44]}  Bd6 {[%clk 0:02:45]} 5. e4 {[%clk 0:02:44]}  O-O {[%clk 0:02:44]} 6. Ngf3 {[%clk 0:02:43]}  Nbd7 {[%clk 0:02:43]} 7. O-O {[%clk 0:02:40]}  c6 {[%clk 0:02:41]} 8. Re1 {[%clk 0:02:38]}  e5 {[%clk 0:02:37]} 9. c3 {[%clk 0:02:35]}  Re8 {[%clk 0:02:36]} 10. Qe2 {[%clk 0:02:26]}  g6 {[%clk 0:02:35]} 11. h3 {[%clk 0:02:26]}  b6 {[%clk 0:02:33]} 12. a4 {[%clk 0:02:23]}  Ba6 {[%clk 0:02:33]} 13. c4 {[%clk 0:02:13]}  Bb4 {[%clk 0:02:24]} 14. Qd1 {[%clk 0:02:07]}  Nc5 {[%clk 0:02:22]} 15. Qc2 {[%clk 0:01:58]}  dxc4 {[%clk 0:02:15]} 16. dxc4 {[%clk 0:01:56]}  Qd3 {[%clk 0:01:58]} 17. Qxd3 {[%clk 0:01:51]}  Nxd3 {[%clk 0:01:58]} 18. Rd1 {[%clk 0:01:52]}  Rad8 {[%clk 0:01:48]} 19. Bf1 {[%clk 0:01:46]}  Bc5 {[%clk 0:01:20]} 20. Bxd3 {[%clk 0:01:42]}  Rxd3 {[%clk 0:01:20]} 21. Kf1 {[%clk 0:01:43]}  Bxc4 {[%clk 0:01:15]} 22. Nxc4 {[%clk 0:01:37]}  Rxd1+ {[%clk 0:01:15]} 23. Ke2 {[%clk 0:01:38]}  Rh1 {[%clk 0:01:10]} 24. Nfxe5 {[%clk 0:01:33]}  Nxe4 {[%clk 0:00:53]} 25. Kf3 {[%clk 0:01:33]}  Nd2+ {[%clk 0:00:48]} 26. Nxd2 {[%clk 0:01:29]}  Rxe5 {[%clk 0:00:46]} 27. b3 {[%clk 0:01:26]}  Ree1 {[%clk 0:00:40]} 28. b4 {[%clk 0:01:06]}  Bd4 {[%clk 0:00:38]} 0-1


[Site "https://www.chess.com"]